Cogmind - Beta 15 @@@ ROGUE MODE // 2025.08.02 @ 00:05:18 Player: Cracklepappy Result: Self-destructed Performance ------------- Evolutions (4) 2000 Regions Visited (18) 3600 Robots Destroyed (306) 1530 Value Destroyed (17346) 17346 Prototype IDs (16) 320 Alien Tech Used (0) 0 Bonus (5860) 5860 TOTAL SCORE: 30656 Bonus ------- High Alert Combat Kills 3727 Follower Combat Kills 1304 Entered Garrisons 1000 Entered DSFs 500 Friendly Fire -671 Cogmind --------- Core Integrity 138/850 Matter 143/300 Energy 340/340 System Corruption 22% Temperature Cool (0) Movement Rolling (137) Ox3 Location -6/Factory Parts ------- > --- POWER (1) -------- Particle Reactor > --- PROPULSION (4) --- Wheel Compact Wheel Compact Wheel Armored Wheel > --- UTILITY (4) ------ Advanced Heat Sink Cargo Storage Unit Machine Analyzer > --- WEAPON (6) ------- Heavy Laser Improved Spread Laser Bore Cannon Bore Cannon Linear Accelerator > --- INVENTORY (30) --- Particle Reactor Wheel Power Amplifier Advanced Heat Sink Advanced Heat Sink Advanced Heat Sink Advanced Heat Sink High-capacity Storage Unit Advanced Energy Well (500) High-capacity Matter Pod (22) High-capacity Matter Pod (0) High-capacity Matter Pod (0) Graphene Brace EM Shield Improved Shield Generator Advanced Hacking Suite High-powered Tractor Beam Shock Rifle Heavy Phase Cannon Scatter Rocket Array Plasma Cutter Mace Spear Spear Peak State ------------ > --- POWER ------------ Reinforced Deuterium Engine > --- PROPULSION ------- Compact Wheel Armored Wheel Armored Wheel Armored Wheel > --- UTILITY ---------- Improved Cooling System Cargo Storage Unit Advanced Targeting Computer > --- WEAPON ----------- Plasma Rifle Wave Gun Gauss Rifle Flak Gun Railgun Railgun > --- INVENTORY -------- Reinforced Deuterium Engine Particle Reactor Compact Wheel Compact Wheel Advanced Heat Sink Advanced Heat Sink Advanced Energy Well High-capacity Matter Pod High-capacity Matter Pod High-capacity Matter Pod Machine Analyzer Graphene Brace EM Shield EM Shield Improved Shield Generator Advanced Hacking Suite High-powered Tractor Beam Improved Arc Projector Gatling Laser Wave Gun Heavy Phase Cannon KE Penetrator Bore Cannon Bore Cannon Bore Cannon Bore Cannon Bore Cannon Scatter Rocket Array Plasma Cutter Mace [Rating: 66] Favorites ----------- Power Cooled Ion Engine Engine Cooled Ion Engine Power Core Neutrino Core Reactor Antimatter Reactor Propulsion Armored Wheel Wheel Armored Wheel Utility High-capacity Storage Unit Device Improved Cooling System Storage High-capacity Storage Unit Processor Advanced Targeting Computer Protection Centrium Light Armor Plating Weapon Improved Assault Rifle Energy Gun Gatling Laser Energy Cannon Heavy Phase Cannon Ballistic Gun Improved Assault Rifle Ballistic Cannon Improved Light Cannon Launcher Scatter Rocket Array Special Weapon Plasma Cutter Impact Weapon Mace Slashing Weapon Falx Special Melee Weapon Improved Datajack Build | -11 -10 -10 -9 -9 -9 -8 -8 -8 -8 -7 -7 -7 -7 -7 -7 -6 -6 -6 ------- Run | Yrd Mat Min Mat Sto Gar Mat Gar Mat Gar Fac Was Fac Gar Fac DSF Fac Gar Fac Slots Evolved 8 | . . . 2 . . 2 . . . 2 . . . . . 2 . . Power . | . . . . . . . . . . . . . . . . . . . Propulsion 2 | . . . . . . . . . . 1 . . . . . 1 . . Utility 2 | . . . . . . 1 . . . . . . . . . 1 . . Weapon 4 | . . . 2 . . 1 . . . 1 . . . . . . . . Parts Attached 189 | 10 12 . 7 16 9 7 4 1 15 2 5 . 36 1 6 9 31 18 Power 15 | 1 1 . 1 2 . . 1 . 1 . 2 . 2 . . 1 1 2 Engine 9 | 1 1 . 1 2 . . 1 . 1 . . . . . . 1 1 . Core 1 | . . . . . . . . . . . . . 1 . . . . . Reactor 5 | . . . . . . . . . . . 2 . 1 . . . . 2 Propulsion 46 | 3 6 . 1 3 6 1 . . 3 1 . . 7 . . 1 6 8 Treads . | . . . . . . . . . . . . . . . . . . . Leg . | . . . . . . . . . . . . . . . . . . . Wheel 46 | 3 6 . 1 3 6 1 . . 3 1 . . 7 . . 1 6 8 Hover . | . . . . . . . . . . . . . . . . . . . Flight . | . . . . . . . . . . . . . . . . . . . Utility 32 | 3 3 . 1 . 1 2 . . 2 1 . . 3 . 4 5 3 4 Device 20 | 2 1 . 1 . 1 1 . . 2 . . . 2 . 3 1 3 3 Storage 6 | 1 2 . . . . . . . . 1 . . 1 . . 1 . . Processor 4 | . . . . . . . . . . . . . . . . 3 . 1 Hackware . | . . . . . . . . . . . . . . . . . . . Protection 2 | . . . . . . 1 . . . . . . . . 1 . . . Artifact . | . . . . . . . . . . . . . . . . . . . Weapon 96 | 3 2 . 4 11 2 4 3 1 9 . 3 . 24 1 2 2 21 4 Energy Gun 11 | 1 . . . . . . . . 1 . . . . . . . 6 3 Energy Cannon 3 | . . . . . . . . . 1 . . . 1 . 1 . . . Ballistic Gun 53 | 2 . . . 5 . . 2 1 7 . 2 . 19 1 1 2 11 . Ballistic Cannon 23 | . 2 . 3 4 1 4 1 . . . . . 4 . . . 3 1 Launcher 1 | . . . . 1 . . . . . . . . . . . . . . Special Weapon 2 | . . . 1 . 1 . . . . . . . . . . . . . Impact Weapon 1 | . . . . . . . . . . . . . . . . . 1 . Slashing Weapon 1 | . . . . . . . . . . . 1 . . . . . . . Piercing Weapon . | . . . . . . . . . . . . . . . . . . . Special Melee Weapon 1 | . . . . 1 . . . . . . . . . . . . . . Unidentified Prototypes 4 | . . . 1 1 . . . . . . . . . . . . . 2 Parts Lost 57 | . . . . . . . 1 . 7 . . . 8 . 1 1 21 18 Power 4 | . . . . . . . 1 . . . . . 1 . . . 1 1 Propulsion 14 | . . . . . . . . . 1 . . . . . . . 6 7 Utility 9 | . . . . . . . . . 2 . . . 2 . 1 1 2 1 Weapon 30 | . . . . . . . . . 4 . . . 5 . . . 12 9 Highest Loss Streak 10 | . . . . . . . 1 . 4 . . . 3 . 1 1 10 6 To Critical Strikes 1 | . . . . . . . 1 . . . . . . . . . . . Average Backups 21 | 3 18 20 19 19 19 19 19 20 19 20 24 25 23 24 24 27 27 28 Power . | . 1 1 1 1 1 1 . . . . . 1 . 1 1 1 2 1 Propulsion 3 | 2 4 4 3 2 3 4 4 3 2 2 2 2 3 4 3 2 1 2 Utility 7 | . 6 6 5 6 6 4 7 9 7 7 7 7 6 7 7 11 12 14 Weapon 9 | . 7 8 9 9 8 7 7 7 8 10 13 14 13 11 10 10 9 8 Tool/Special . | . . . . . . . . . . . . . . . . . . . Unused Backups 73 | 1 7 2 2 2 2 4 2 . 5 2 7 . 5 . . 4 5 23 Power 9 | . 1 1 . 1 . . 1 . . . 1 . 1 . . . 2 1 Propulsion 5 | 1 3 . . . . . . . . . . . . . . . . 1 Utility 27 | . 1 1 . 1 1 3 . . . . 1 . 1 . . 3 1 14 Weapon 29 | . 2 . 2 . . 1 1 . 5 2 5 . 2 . . 1 2 6 Tool/Special 3 | . . . . . 1 . . . . . . . 1 . . . . 1 Average Slot Usage (%) 97 | . 99 100 99 97 100 96 99 100 99 99 99 100 99 100 99 92 89 90 Engine 7 | . 14 14 11 11 11 9 9 9 9 7 3 . . . . 1 6 3 Reactor 1 | . . . . . . . . . . . 3 7 6 . . . . 2 Wheel 22 | . 28 28 22 22 22 16 17 18 17 23 23 23 23 23 23 26 22 24 Device 11 | . 14 14 11 11 11 9 9 9 16 15 15 15 15 15 14 9 8 6 Storage 9 | . 14 14 11 11 11 9 9 9 9 7 7 7 7 7 7 6 6 6 Protection 1 | . . . . . . 9 9 9 1 . . . . . . . . . Ballistic Gun 25 | . . . . 7 28 15 32 45 42 45 45 46 43 46 45 40 21 25 Ballistic Cannon 14 | . 26 28 43 33 12 27 12 . . . . . . . . . 9 12 Peak Build Rating 66 | 9 13 13 20 26 30 42 44 42 43 38 49 49 58 54 57 61 66 65 Average Rating 36 | 7 11 13 18 20 26 35 42 41 34 37 45 49 50 54 54 57 55 53 On Entrance 35 | . 7 13 13 20 26 25 42 42 41 33 38 49 49 54 54 56 57 49 Naked Turns . | . . . . . . . . . . . . . . . . . . . Heaviest Build 260 | 15 55 55 66 66 68 76 76 68 74 109 120 120 129 121 128 260 205 210 Greatest Support 56 | 26 20 20 20 20 24 24 24 24 24 36 36 36 36 36 36 48 56 56 Greatest Overweight (x) 7 | . 2 2 3 3 3 3 6 2 5 3 3 3 3 3 3 5 7 4 Average Overweight (x) 2 | . 1 2 2 2 2 2 2 2 2 1 2 3 2 3 3 3 3 3 Largest Inventory Capacity 30 | 8 20 20 20 20 20 20 20 20 20 25 25 25 25 25 25 30 30 30 Average Capacity 22 | 7 19 20 20 20 20 20 20 20 20 21 25 25 25 25 25 29 30 30 Most Carried 30 | 8 20 20 20 20 20 20 20 20 20 22 25 25 25 25 25 30 30 30 Average Carried 22 | 4 19 20 19 19 19 19 19 20 19 20 24 25 24 25 24 27 27 27 Final Capacity 30 | 8 20 20 20 20 20 20 20 20 20 25 25 25 25 25 25 30 30 30 Final Carried 30 | 8 20 20 20 20 20 20 20 20 20 22 25 25 25 25 25 30 30 24 Class Distribution -------------------- 30% | Scavenger-Executioner 16% | Gunner 14% | Tank 12% | Mutant 11% | Commander-Gunner 5% | Hauler-Executioner 4% | Executioner 3% | Scavenger-Gunner Dominant Class ---------------- Mutant | -10/Materials Mutant | -10/Mines Gunner | -9/Materials Gunner | -9/Storage Commander-Gunner | -9/Garrison Tank | -8/Materials Tank | -8/Garrison Tank | -8/Materials Scavenger-Gunner | -8/Garrison Scavenger-Executioner | -7/Factory Scavenger-Executioner | -7/Waste Scavenger-Executioner | -7/Factory Scavenger-Executioner | -7/Garrison Executioner | -7/Factory Executioner | -7/DSF Hauler-Executioner | -6/Factory Scavenger-Executioner | -6/Garrison Scavenger-Executioner | -6/Factory Resources | -11 -10 -10 -9 -9 -9 -8 -8 -8 -8 -7 -7 -7 -7 -7 -7 -6 -6 -6 ----------- Run | Yrd Mat Min Mat Sto Gar Mat Gar Mat Gar Fac Was Fac Gar Fac DSF Fac Gar Fac Matter Collected 16952 | 322 638 335 625 762 959 375 2037 70 1302 49 307 22 2201 . 627 664 3053 2604 Remotely 903 | . . . . . . . . . . . . . . . . 130 327 446 Salvage Created 15128 | 162 418 129 611 935 1443 329 1570 142 1677 68 746 . 2201 . 638 663 1624 1772 Parts 680 | 14 35 8 35 46 72 14 81 6 90 2 8 . 90 . 32 30 60 57 Haulers Intercepted 17 | . 2 . 4 6 . 2 . . . . . . . . . . . 3 Recyclers Shooed 6 | 1 2 . . . . . . . . . . . . . . . . 3 Parts Field Recycled . | . . . . . . . . . . . . . . . . . . . Retrieved Matter . | . . . . . . . . . . . . . . . . . . . Parts Self-Destructed . | . . . . . . . . . . . . . . . . . . . Prevented . | . . . . . . . . . . . . . . . . . . . Kills | -11 -10 -10 -9 -9 -9 -8 -8 -8 -8 -7 -7 -7 -7 -7 -7 -6 -6 -6 ------- Run | Yrd Mat Min Mat Sto Gar Mat Gar Mat Gar Fac Was Fac Gar Fac DSF Fac Gar Fac Combat Hostiles Destroyed 245 | . 11 3 9 10 24 6 36 . 41 . . . 34 . 10 9 30 22 Guns 177 | . . . . 1 18 3 24 . 41 . . . 34 . 10 9 28 9 Cannons 68 | . 11 3 9 9 6 3 12 . . . . . . . . . 2 13 Classes Destroyed 17 | 2 5 . 1 1 2 2 1 . 1 . . . . . 1 . 1 . Worker 8 | . 1 1 . 3 . . . . . . . . . . . . . 3 Builder 9 | . 1 . 2 1 . . . . . . . . . . . . . 5 Tunneler 7 | 4 . 3 . . . . . . . . . . . . . . . . Hauler 17 | . 2 . 4 6 . 2 . . . . . . . . . . . 3 Recycler 14 | 1 3 . 2 1 . . . 2 . 1 . . . . . 1 . 3 Operator 1 | . . . . 1 . . . . . . . . . . . . . . Watcher 2 | . . . . . . 1 . . . . . . 1 . . . . . Swarmer 70 | . 6 1 1 . 5 . 10 . 19 . . . 13 . 3 1 9 2 Grunt 86 | . 5 2 4 3 11 3 13 . 12 . . . 6 . 3 3 9 12 Brawler 7 | . . . . . . . 1 . . . . . . . . 2 2 2 Duelist 5 | . . . . . 1 . 1 . 1 . . . 1 . . . . 1 Sentry 42 | . . . 5 6 6 2 7 . 4 . . . 6 . . 1 4 1 Specialist 5 | . . . . . . . . . 1 . . . . . 3 . 1 . Hunter 14 | . . . . . . 1 2 . 1 . . . 4 . . 1 4 1 Programmer 15 | . . . . . 2 . 2 . 3 . . . 4 . . 1 . 3 Heavy 1 | . . . . . . . . . . . . . . . 1 . . . Behemoth 1 | . . . . . . . . . . . . . . . . . 1 . Savage 1 | . . . . . . . 1 . . . . . . . . . . . Best Kill Streak 13 | 3 5 3 5 6 5 4 6 2 13 1 . . 8 . 3 4 11 7 Combat Bots Only 13 | . 3 2 3 6 5 4 6 . 13 . . . 8 . 3 4 11 5 Max Kills in Single Turn 3 | 1 2 1 2 2 3 1 1 1 3 1 . . 2 . 2 2 3 2 Gunslinging 2 | . . . . . 2 . . . 1 . . . 1 . 1 1 2 . Exploded . | . . . . . . . . . . . . . . . . . . . Melee . | . . . . . . . . . . . . . . . . . . . Uniques/NPCs Destroyed 1 | . . . . 1 . . . . . . . . . . . . . . 01-MTF (-9/Storage) Combat | -11 -10 -10 -9 -9 -9 -8 -8 -8 -8 -7 -7 -7 -7 -7 -7 -6 -6 -6 -------- Run | Yrd Mat Min Mat Sto Gar Mat Gar Mat Gar Fac Was Fac Gar Fac DSF Fac Gar Fac Hostile Shots Fired 1207 | . 41 8 26 14 63 12 118 2 134 . . 4 220 . 54 61 282 168 Missed 347 | . 14 4 4 4 18 4 33 1 46 . . 1 71 . 19 14 77 37 Hits 860 | . 27 4 22 10 45 8 85 1 88 . . 3 149 . 35 47 205 131 Melee 21 | . . . . . 1 . 7 . . . . . . . . 3 2 8 Projectile 839 | . 27 4 22 10 44 8 78 1 88 . . 3 149 . 35 44 203 123 Critical Strikes 25 | . 1 . 1 . 2 . 5 . 1 . . . 2 . 3 3 2 5 Part Disruptions 1 | . . . . . . . . . . . . . . . . . . 1 Damage Taken 12172 | . 213 39 255 244 627 123 1266 16 1146 . . 134 1711 . 557 674 2951 2216 Core 1376 | . 35 9 10 23 63 . 119 . 119 . . 45 102 . 139 76 330 306 Absorbed by Shields 325 | . 27 14 . . 12 . 92 . . . . . . . 94 . 86 . Regen/Repaired (Parts) 538 | . 111 . . . . 427 . . . . . . . . . . . . Core Remaining (%) 74 | 100 . 82 . . 76 . . . 56 . . . . . 59 . . . Volleys Fired 1067 | 13 43 12 36 38 206 15 111 2 113 2 12 1 192 . 35 20 135 81 Largest 6 | 2 2 2 4 4 4 5 5 5 5 6 6 6 6 . 6 6 6 6 Hottest 342 | 40 66 66 132 132 122 145 171 115 120 143 163 163 183 . 168 168 333 342 Shots Fired 3134 | 26 86 24 126 130 312 75 400 10 303 12 72 7 466 . 142 121 393 429 Gun 2040 | 26 . . . 31 115 30 281 10 251 12 72 7 365 . 128 121 279 312 Cannon 820 | . 86 24 123 94 57 45 119 . 15 . . . 51 . 14 . 75 117 Launcher . | . . . . . . . . . . . . . . . . . . . Special 274 | . . . 3 5 140 . . . 37 . . . 50 . . . 39 . Kinetic 2727 | 26 86 24 123 125 172 75 400 10 254 12 72 7 387 . 128 121 290 415 Thermal 400 | . . . 3 5 140 . . . 42 . . . 79 . 14 . 103 14 Explosive . | . . . . . . . . . . . . . . . . . . . Electromagnetic 7 | . . . . . . . . . 7 . . . . . . . . . Robot Hit Streak 39 | 8 6 5 14 21 29 6 27 3 31 2 11 1 39 . 6 10 20 12 Robot Miss Streak 35 | 1 4 2 5 9 2 3 5 1 6 3 3 5 8 . 8 6 6 35 Penetration Max 1 | . . . . . . . . . . . 1 . 1 . 1 1 1 1 Secondary Targets 51 | . . . . . 6 . 1 . 15 . . . 8 . 4 2 13 2 Max Gunslinging Chain 2 | . . . . . 2 . 1 . 2 . . . 1 . 1 1 2 1 Shots Hit Robots 1628 | 19 41 15 48 55 204 39 212 3 163 2 51 1 256 . 54 57 206 202 Core Hits 742 | 7 18 8 20 27 74 18 84 2 82 2 8 . 116 . 20 26 109 121 Critical Kills 17 | . . . . . . . 1 . . . 1 . 1 . . 1 4 9 Critical Parts Destroyed 29 | . . . . 1 . . 2 . . . . . 2 . 1 1 8 14 Critical Strikes 72 | . . . 3 1 7 1 3 . 5 . 3 . 7 . 1 2 16 23 Destroy 50 | . . . . 1 . . 3 . . . 3 . 3 . 1 2 14 23 Blast 4 | . . . 3 . . 1 . . . . . . . . . . . . Sever 18 | . . . . . 7 . . . 5 . . . 4 . . . 2 . Melee Attacks 4 | . . . . 2 . . . . . . . . . . . . 2 . Impact 2 | . . . . . . . . . . . . . . . . . 2 . Slashing . | . . . . . . . . . . . . . . . . . . . Piercing . | . . . . . . . . . . . . . . . . . . . Sneak Attacks 2 | . . . . 2 . . . . . . . . . . . . . . Combat Hostiles . | . . . . . . . . . . . . . . . . . . . Follow-up Attacks . | . . . . . . . . . . . . . . . . . . . Damage Inflicted 29588 | 213 939 329 1260 1116 2748 705 3228 47 2459 37 1129 20 4840 . 1326 1208 3987 3997 Guns 19246 | 213 . . . 324 939 243 2179 47 2074 37 1129 20 3702 . 1326 1208 3015 2790 Cannons 7544 | . 939 329 1260 792 343 462 1049 . . . . . 586 . . . 577 1207 Explosions . | . . . . . . . . . . . . . . . . . . . Melee . | . . . . . . . . . . . . . . . . . . . Ramming . | . . . . . . . . . . . . . . . . . . . Kinetic 25412 | 213 939 329 1260 1116 1282 705 3228 47 2074 37 1129 20 3702 . 1326 1208 3000 3797 Thermal 4176 | . . . . . 1466 . . . 385 . . . 1138 . . . 987 200 Explosive . | . . . . . . . . . . . . . . . . . . . Electromagnetic . | . . . . . . . . . . . . . . . . . . . Impact . | . . . . . . . . . . . . . . . . . . . Slashing . | . . . . . . . . . . . . . . . . . . . Piercing . | . . . . . . . . . . . . . . . . . . . Highest Corruption 22 | . . . . 3 4 . 1 1 3 . . 3 7 7 7 3 4 22 Average Corruption 4 | . . . . 2 3 . 1 1 2 . . 2 6 7 7 2 3 11 Corruption Purged . | . . . . . . . . . . . . . . . . . . . Corruption Blocked . | . . . . . . . . . . . . . . . . . . . Effects 250 | . . . . 10 49 . 4 . 26 . . 2 67 . 12 3 44 33 Message Errors 53 | . . . . 3 6 . 2 . 6 . . . 14 . 2 2 9 9 Matter Fused 50 | . . . . 1 8 . . . 2 . . . 15 . 3 . 13 8 Heat Flow Errors 27 | . . . . 2 7 . . . 2 . . 1 7 . . . 5 3 Energy Discharges 36 | . . . . . 8 . . . 6 . . . 10 . 2 . 6 4 Parts Rejected 1 | . . . . . . . . . . . . . . . 1 . . . Parts Fused 1 | . . . . . 1 . . . . . . . . . . . . . Data Loss (minor) 30 | . . . . . 10 . 1 . 3 . . . 8 . 1 . 5 2 Data Loss (major) 14 | . . . . 3 3 . . . 5 . . . 2 . 1 . . . Misfires 14 | . . . . . 3 . 1 . 1 . . 1 3 . 2 1 1 1 Alerts 5 | . . . . . 1 . . . . . . . 3 . . . . 1 Weapon Failures 19 | . . . . 1 2 . . . 1 . . . 5 . . . 5 5 Overload Shots . | . . . . . . . . . . . . . . . . . . . Overflow Damage 76 | . 34 . . 2 5 . 12 . . . . . 21 . . . . 2 Projectiles 76 | . 34 . . 2 5 . 12 . . . . . 21 . . . . 2 Explosions . | . . . . . . . . . . . . . . . . . . . Melee . | . . . . . . . . . . . . . . . . . . . Knockbacks 51 | . 10 7 3 5 2 4 8 . . . . . . . . . 2 10 Impact . | . . . . . . . . . . . . . . . . . . . Kinetic 48 | . 9 7 3 5 2 4 6 . . . . . . . . . 2 10 Secondary 3 | . 1 . . . . . 2 . . . . . . . . . . . Self-Inflicted Damage . | . . . . . . . . . . . . . . . . . . . Shots . | . . . . . . . . . . . . . . . . . . . Rammed . | . . . . . . . . . . . . . . . . . . . Targets Rammed . | . . . . . . . . . . . . . . . . . . . Kicked . | . . . . . . . . . . . . . . . . . . . Crushed . | . . . . . . . . . . . . . . . . . . . Highest Temperature 461 | . 54 22 36 165 250 9 54 . 191 . . 96 214 . 300 24 461 438 Average Temperature 73 | . 16 6 14 47 94 9 18 . 76 . . 70 30 . 99 15 123 98 Received Heat Transfer 2438 | . 42 20 78 57 211 27 346 . 243 . . . 255 . 85 87 468 519 Effects 3 | . . . . . . . . . . . . . . . 1 . 2 . Energy Bleed 1 | . . . . . . . . . . . . . . . . . 1 . Damage (minor) 2 | . . . . . . . . . . . . . . . 1 . 1 . Siege Activations . | . . . . . . . . . . . . . . . . . . . Martial Activations . | . . . . . . . . . . . . . . . . . . . Shielding Activations . | . . . . . . . . . . . . . . . . . . . Robots Disrupted . | . . . . . . . . . . . . . . . . . . . Combat Hostiles . | . . . . . . . . . . . . . . . . . . . Robots Corrupted . | . . . . . . . . . . . . . . . . . . . Combat Hostiles . | . . . . . . . . . . . . . . . . . . . Parts Fried 1 | . . . . 1 . . . . . . . . . . . . . . Impact Corruptions . | . . . . . . . . . . . . . . . . . . . Robots Melted 1 | . . . . . 1 . . . . . . . . . . . . . Combat Hostiles . | . . . . . . . . . . . . . . . . . . . Parts Melted 4 | . . . . . 3 . . . . . . . . . . . . 1 Heat Transferred 11460 | . . . . . 4921 . . . 1295 . . . 2479 . . . 2539 226 Parts Sabotaged 2 | . . . . . . . . . . . . . . . . . . 2 Parts Stolen . | . . . . . . . . . . . . . . . . . . . Parts Stripped . | . . . . . . . . . . . . . . . . . . . Power Chain Reactions . | . . . . . . . . . . . . . . . . . . . Alert | -11 -10 -10 -9 -9 -9 -8 -8 -8 -8 -7 -7 -7 -7 -7 -7 -6 -6 -6 ------- Run | Yrd Mat Min Mat Sto Gar Mat Gar Mat Gar Fac Was Fac Gar Fac DSF Fac Gar Fac Maximum Alert Level 5 | . . . 1 . 5 3 5 3 5 3 1 . 4 3 3 2 5 4 Low Security (%) 32 | 100 100 100 39 100 14 . . . . . 68 100 8 . . . . . Level 1 7 | . . . 60 . 1 . . . . . 31 . 7 . . 66 3 . Level 2 10 | . . . . . 19 . 23 . 5 . . . 14 . 30 33 22 . Level 3 24 | . . . . . 26 100 23 100 28 100 . . 29 100 69 . 33 78 Level 4 17 | . . . . . 33 . 24 . 40 . . . 39 . . . 23 21 Level 5 6 | . . . . . 5 . 27 . 25 . . . . . . . 17 . High Security . | . . . . . . . . . . . . . . . . . . . Max Security . | . . . . . . . . . . . . . . . . . . . Sterilizations 1 | . . . . . . . . . . . . . . . 1 . . . Peak Influence 2096 | 10 144 79 306 143 1740 917 2096 1045 2030 1065 347 75 1579 828 808 478 1951 1181 Initial 1065 | . . 33 . 118 . 848 480 1021 659 1065 347 . 45 828 565 424 295 1024 Average 670 | 2 55 18 198 24 911 825 1179 1025 1325 1027 134 23 882 821 731 364 1050 1065 Influence Increases 11965 | 25 472 151 658 410 1780 261 1646 44 1501 9 . 153 1654 . 253 318 1886 744 Destroy 0b10 Robot/C 5900 | . 220 100 360 180 740 140 820 20 840 . . 60 720 . 200 180 880 440 Destroy 0b10 Robot/NC 430 | 25 35 20 45 60 25 15 10 10 15 5 . 10 40 . 20 5 20 70 Destroy Leader 788 | . 54 20 110 82 50 46 40 10 60 . . 10 60 . 30 40 70 106 Allied During Kill 556 | . . 9 74 3 296 12 37 4 31 2 . 20 11 . . . 57 . Successful Hack 207 | . 47 . 8 12 28 13 35 . . 2 . 22 14 . . 12 14 . Select Force Hacks 60 | . 60 . . . . . . . . . . . . . . . . . Disable Machine 450 | . 30 . 45 45 30 30 30 . 30 . . . 30 . . 60 45 75 Anti-Garrison Action 2950 | . . . . . 550 . 650 . 500 . . . 700 . . . 550 . Destroy Structure 324 | . 11 2 16 13 16 5 9 . 25 . . 1 64 . 3 21 85 53 Lose Combat Pursuer 300 | . 15 . . 15 45 . 15 . . . . 30 15 . . . 165 . Influence Decreases 10795 | 25 385 238 376 692 40 1262 289 1125 486 1045 994 88 140 771 253 704 357 1525 Entered New Map 6864 | . . 54 . 164 . 892 259 1075 356 965 647 . 20 751 243 384 127 927 Time Decay 2821 | 25 385 184 296 368 . 310 . 50 . 80 347 48 . 20 . 310 . 398 Lost Part 570 | . . . . . . . 10 . 70 . . . 80 . 10 10 210 180 Lost Ally 380 | . . . 80 . 40 60 20 . 60 . . 40 40 . . . 20 20 Purge Threat 160 | . . . . 160 . . . . . . . . . . . . . . Squads Dispatched 24 | . 3 1 3 3 . 1 . . . . . 1 . . 2 2 . 8 Investigation 7 | . 2 1 2 . . . . . . . . . . . . 1 . 1 Extermination 3 | . . . . . . . . . . . . . . . . 1 . 2 Reinforcement 12 | . 1 . 1 3 . 1 . . . . . . . . 2 . . 4 Assault 1 | . . . . . . . . . . . . . . . . . . 1 Garrison 1 | . . . . . . . . . . . . 1 . . . . . . Intercept . | . . . . . . . . . . . . . . . . . . . Searches Triggered . | . . . . . . . . . . . . . . . . . . . Construction Impeded 1 | . . . . . . . . . . . . . . . . . . 1 Haulers Reinforced 2 | . . . . . . . . . . . . . . . . . . 2 Active Scanning Responses . | . . . . . . . . . . . . . . . . . . . Cargo Convoy Interrupts . | . . . . . . . . . . . . . . . . . . . Stealth | -11 -10 -10 -9 -9 -9 -8 -8 -8 -8 -7 -7 -7 -7 -7 -7 -6 -6 -6 --------- Run | Yrd Mat Min Mat Sto Gar Mat Gar Mat Gar Fac Was Fac Gar Fac DSF Fac Gar Fac Distress Signals 9 | . 1 . 1 3 . 1 . . . . . . 1 . . . . 2 Communications Jammed . | . . . . . . . . . . . . . . . . . . . Distress Signals . | . . . . . . . . . . . . . . . . . . . Times Spotted 344 | . 13 5 22 36 37 9 38 1 39 1 . 5 41 . 9 12 44 32 Peak Tracking Total 10 | . 3 3 4 4 4 3 4 1 7 1 . 3 7 . 3 3 10 6 Tactical Retreats 13 | . 1 . . 2 1 . 1 . . . . 2 1 . . . 5 . Traps | -11 -10 -10 -9 -9 -9 -8 -8 -8 -8 -7 -7 -7 -7 -7 -7 -6 -6 -6 ------- Run | Yrd Mat Min Mat Sto Gar Mat Gar Mat Gar Fac Was Fac Gar Fac DSF Fac Gar Fac Traps Triggered 37 | . . . . 2 7 . 7 . 7 1 . 1 5 . . 1 5 1 Indirectly . | . . . . . . . . . . . . . . . . . . . Trap Hack Attempts . | . . . . . . . . . . . . . . . . . . . Triggered . | . . . . . . . . . . . . . . . . . . . Disarmed . | . . . . . . . . . . . . . . . . . . . Reprogrammed . | . . . . . . . . . . . . . . . . . . . Reused . | . . . . . . . . . . . . . . . . . . . Traps Extracted . | . . . . . . . . . . . . . . . . . . . Installed . | . . . . . . . . . . . . . . . . . . . Triggered . | . . . . . . . . . . . . . . . . . . . Machines | -11 -10 -10 -9 -9 -9 -8 -8 -8 -8 -7 -7 -7 -7 -7 -7 -6 -6 -6 ---------- Run | Yrd Mat Min Mat Sto Gar Mat Gar Mat Gar Fac Was Fac Gar Fac DSF Fac Gar Fac Machines Disabled 68 | . 2 . 3 3 8 2 13 . 9 . . . 8 . . 4 11 5 Max in Single Turn 2 | . 1 . 1 1 1 1 1 . 1 . . . 1 . . 2 1 1 Garrison Relay 32 | . . . . . 6 . 8 . 6 . . . 5 . . . 7 . Phase Generator 2 | . . . . . . . 1 . 1 . . . . . . . . . Machines Repaired . | . . . . . . . . . . . . . . . . . . . Machines Dismantled 5 | . . . . . 1 . 2 . 2 . . . . . . . . . Machines Sabotaged . | . . . . . . . . . . . . . . . . . . . Overloaded Fab Kills . | . . . . . . . . . . . . . . . . . . . Hacking | -11 -10 -10 -9 -9 -9 -8 -8 -8 -8 -7 -7 -7 -7 -7 -7 -6 -6 -6 --------- Run | Yrd Mat Min Mat Sto Gar Mat Gar Mat Gar Fac Was Fac Gar Fac DSF Fac Gar Fac Machines Accessed 55 | . 10 1 6 9 3 3 4 1 3 1 . 2 2 1 . 4 1 4 Terminals 36 | . 7 . 5 5 3 . 4 . 3 . . 1 2 1 . 2 1 2 Fabricators 1 | . . . . . . . . . . . . . . . . . . 1 Repair Stations 4 | . 1 . . 2 . 1 . . . . . . . . . . . . Recycling Units 4 | . 2 . 1 1 . . . . . . . . . . . . . . Scanalyzers 4 | . . . . . . 1 . . . 1 . . . . . 1 . 1 Garrison Access 5 | . . . . 1 . 1 . 1 . . . 1 . . . 1 . . Total Hacks 143 | . 30 1 9 24 7 24 9 2 6 2 . 4 4 2 . 9 1 9 Successful 73 | . 19 1 2 14 2 19 3 1 1 2 . 3 1 1 . 2 1 1 Failed 70 | . 11 . 7 10 5 5 6 1 5 . . 1 3 1 . 7 . 8 Catastrophic 18 | . 3 . 2 2 3 1 2 . 1 . . . . . . 1 . 3 Database Lockouts . | . . . . . . . . . . . . . . . . . . . Manual 38 | . 17 . 7 5 . 1 . . . . . 1 . . . 2 . 5 Terminals 86 | . 24 . 8 16 7 . 9 . 6 . . 2 4 2 . 3 1 4 Fabricators 3 | . . . . . . . . . . . . . . . . . . 3 Repair Stations 26 | . 4 . . 4 . 18 . . . . . . . . . . . . Recycling Units 5 | . 2 . 1 2 . . . . . . . . . . . . . . Scanalyzers 11 | . . . . . . 4 . . . 2 . . . . . 3 . 2 Garrison Access 11 | . . . . 2 . 2 . 2 . . . 2 . . . 3 . . Terminal Hacks 28 | . 7 1 . 9 2 . 3 . 1 . . 2 1 1 . . 1 . Part Schematic 5 | . 3 . . 1 . . . . . . . 1 . . . . . . Robot Analysis 1 | . 1 . . . . . . . . . . . . . . . . . Prototype ID Bank 3 | . 2 . . 1 . . . . . . . . . . . . . . Open Door 2 | . . 1 . . . . 1 . . . . . . . . . . . Open DSF 1 | . . . . . . . . . . . . . . 1 . . . . Emergency Access Points 2 | . . . . . 1 . . . . . . . 1 . . . . . Terminal Index 1 | . 1 . . . . . . . . . . . . . . . . . Alert Level 1 | . . . . 1 . . . . . . . . . . . . . . Unreport Threat 2 | . . . . 2 . . . . . . . . . . . . . . Locate Traps 1 | . . . . 1 . . . . . . . . . . . . . . Hauler Manifests 1 | . . . . 1 . . . . . . . . . . . . . . Registered Components 1 | . . . . 1 . . . . . . . . . . . . . . Zone Layout 2 | . . . . 1 . . . . . . . 1 . . . . . . Garrison Registry 3 | . . . . . . . 1 . 1 . . . . . . . 1 . Patrol Navigation 2 | . . . . . 1 . 1 . . . . . . . . . . . Fabricator Hacks . | . . . . . . . . . . . . . . . . . . . Repair Station Hacks 19 | . 4 . . 1 . 14 . . . . . . . . . . . . Scan Component 10 | . 2 . . 1 . 7 . . . . . . . . . . . . Repair 9 | . 2 . . . . 7 . . . . . . . . . . . . Recycling Unit Hacks . | . . . . . . . . . . . . . . . . . . . Scanalyzer 8 | . . . . . . 4 . . . 2 . . . . . 1 . 1 Insert Component 5 | . . . . . . 2 . . . 1 . . . . . 1 . 1 Analyze 3 | . . . . . . 2 . . . 1 . . . . . . . . Garrison Access Hacks 5 | . . . . 1 . 1 . 1 . . . 1 . . . 1 . . Unlock Access 5 | . . . . 1 . 1 . 1 . . . 1 . . . 1 . . Unauthorized Hacks 13 | . 8 . 2 3 . . . . . . . . . . . . . . Terminals 9 | . 6 . 2 1 . . . . . . . . . . . . . . Botnet 1 | . . . . 1 . . . . . . . . . . . . . . Operators 1 | . 1 . . . . . . . . . . . . . . . . . Skim 7 | . 5 . 2 . . . . . . . . . . . . . . . Fabricators . | . . . . . . . . . . . . . . . . . . . Repair Stations . | . . . . . . . . . . . . . . . . . . . Recycling Units 4 | . 2 . . 2 . . . . . . . . . . . . . . Reject 1 | . . . . 1 . . . . . . . . . . . . . . Mask 1 | . . . . 1 . . . . . . . . . . . . . . Tunnel 2 | . 2 . . . . . . . . . . . . . . . . . Scanalyzers . | . . . . . . . . . . . . . . . . . . . Garrison Access . | . . . . . . . . . . . . . . . . . . . Data Cores Recovered 2 | . . . . 1 . . . . . . . 1 . . . . . . Used . | . . . . . . . . . . . . . . . . . . . Hacking Detections 47 | . 8 . 5 7 3 3 3 1 3 1 . 2 2 . . 4 1 4 Full Trace Events 8 | . . . 1 . 1 1 1 . 1 . . . 1 . . 1 . 1 Feedback Events . | . . . . . . . . . . . . . . . . . . . Feedback Blocked . | . . . . . . . . . . . . . . . . . . . Robot Schematics Acquired . | . . . . . . . . . . . . . . . . . . . Robots Built . | . . . . . . . . . . . . . . . . . . . Authchips . | . . . . . . . . . . . . . . . . . . . Time . | . . . . . . . . . . . . . . . . . . . Total Robot Build Rating . | . . . . . . . . . . . . . . . . . . . Part Schematics Acquired 8 | . 3 . . 1 . 2 . . . 1 . 1 . . . . . . Parts Built . | . . . . . . . . . . . . . . . . . . . Authchips . | . . . . . . . . . . . . . . . . . . . Time . | . . . . . . . . . . . . . . . . . . . Total Part Build Rating . | . . . . . . . . . . . . . . . . . . . Parts Repaired 9 | . 2 . . . . 7 . . . . . . . . . . . . Time 326 | . 64 . . . . 262 . . . . . . . . . . . . Parts Recycled . | . . . . . . . . . . . . . . . . . . . Recycled Matter . | . . . . . . . . . . . . . . . . . . . Retrieved Matter . | . . . . . . . . . . . . . . . . . . . Retrieved Components . | . . . . . . . . . . . . . . . . . . . Parts Scanalyzed 4 | . . . . . . 2 . . . 1 . . . . . 1 . . Part Schematics Acquired 3 | . . . . . . 2 . . . 1 . . . . . . . . Parts Damaged . | . . . . . . . . . . . . . . . . . . . Bothacking | -11 -10 -10 -9 -9 -9 -8 -8 -8 -8 -7 -7 -7 -7 -7 -7 -6 -6 -6 ------------ Run | Yrd Mat Min Mat Sto Gar Mat Gar Mat Gar Fac Was Fac Gar Fac DSF Fac Gar Fac Used RIF Installer . | . . . . . . . . . . . . . . . . . . . Robots Hacked 2 | . . . . 2 . . . . . . . . . . . . . . Non-combat 1 | . . . . 1 . . . . . . . . . . . . . . Combat 1 | . . . . 1 . . . . . . . . . . . . . . Robot Hacks Applied 2 | . . . . 2 . . . . . . . . . . . . . . parse_system 2 | . . . . 2 . . . . . . . . . . . . . . Relay Couplers Released 132 | . . . . . 23 . 31 . 23 . . . 24 . . . 31 . Machine Destruction 128 | . . . . . 23 . 31 . 23 . . . 20 . . . 31 . Programmers 4 | . . . . . . . . . . . . . 4 . . . . . Fabnet Peak Effective % . | . . . . . . . . . . . . . . . . . . . Robots Rewired 10 | . . . . . . . 5 . 4 . . . . . . . 1 . Allies Hacked . | . . . . . . . . . . . . . . . . . . . Hacks Repelled . | . . . . . . . . . . . . . . . . . . . Allies | -11 -10 -10 -9 -9 -9 -8 -8 -8 -8 -7 -7 -7 -7 -7 -7 -6 -6 -6 -------- Run | Yrd Mat Min Mat Sto Gar Mat Gar Mat Gar Fac Was Fac Gar Fac DSF Fac Gar Fac Total Allies 31 | . . 5 . 10 2 . 5 . 6 . . . . . . . 3 . Largest Group 10 | . . 5 5 10 9 4 3 3 6 6 6 6 2 . . . 2 1 Highest-Rated Group 162 | . . 86 86 88 120 55 59 15 155 155 155 155 63 . . . 162 85 Highest-Rated Ally 85 | . . 31 31 16 31 31 39 5 39 39 39 39 39 . . . 85 85 Initial Warlord ECA Mod 476 | . . . . . . 9 9 25 25 35 35 35 35 46 46 55 55 66 Total Orders 2 | . . . . . . . . . . . . . . . . . 2 . STAY 1 | . . . . . . . . . . . . . . . . . 1 . FOLLOW 1 | . . . . . . . . . . . . . . . . . 1 . Ally Attacks 305 | . . 2 46 13 80 22 26 15 21 . . 20 16 . . . 42 2 Total Damage 5124 | . . 54 486 61 815 192 298 86 229 . . 401 147 . . . 2212 143 Kills 59 | . . 2 10 . 15 1 5 1 1 . . 6 2 . . . 16 . Allies Corrupted . | . . . . . . . . . . . . . . . . . . . Allies Melted . | . . . . . . . . . . . . . . . . . . . Intel | -11 -10 -10 -9 -9 -9 -8 -8 -8 -8 -7 -7 -7 -7 -7 -7 -6 -6 -6 ------- Run | Yrd Mat Min Mat Sto Gar Mat Gar Mat Gar Fac Was Fac Gar Fac DSF Fac Gar Fac Active Infowar (turns) 1803 | 87 813 . . . . . . . . . . . . . 2 . . 901 Terrain 79 | 77 . . . . . . . . . . . . . . . . . 2 Seismic 825 | 10 813 . . . . . . . . . . . . . 2 . . . Machine Analysis 901 | . . . . . . . . . . . . . . . . . . 901 Robot Analysis Total 1 | . 1 . . . . . . . . . . . . . . . . . Derelict Logs Recovered 1 | . . 1 . . . . . . . . . . . . . . . . Drone Launches . | . . . . . . . . . . . . . . . . . . . Drone Recoveries . | . . . . . . . . . . . . . . . . . . . Exploration | -11 -10 -10 -9 -9 -9 -8 -8 -8 -8 -7 -7 -7 -7 -7 -7 -6 -6 -6 ------------- Run | Yrd Mat Min Mat Sto Gar Mat Gar Mat Gar Fac Was Fac Gar Fac DSF Fac Gar Fac Turns Passed 18521 | 139 1500 673 712 2214 1931 680 1665 103 1392 176 966 146 2287 42 342 684 1918 951 Spaces Moved 10048 | 89 858 560 431 1307 979 253 880 78 688 136 651 82 1171 31 153 411 872 418 Core 1 | 1 . . . . . . . . . . . . . . . . . . Treads . | . . . . . . . . . . . . . . . . . . . Legs . | . . . . . . . . . . . . . . . . . . . Wheels 10047 | 88 858 560 431 1307 979 253 880 78 688 136 651 82 1171 31 153 411 872 418 Hover . | . . . . . . . . . . . . . . . . . . . Flight . | . . . . . . . . . . . . . . . . . . . Fastest Speed 50 | 50 80 110 110 110 110 120 120 120 120 105 120 135 120 135 135 135 135 137 Average Speed 126 | 88 108 110 124 124 120 124 124 120 121 113 134 135 134 135 135 137 149 140 Slowest Speed 195 | 90 110 110 125 125 125 135 180 120 165 135 135 135 135 135 135 165 195 153 Overloaded Moves . | . . . . . . . . . . . . . . . . . . . Propulsion Burnouts . | . . . . . . . . . . . . . . . . . . . Robots Hopped 14 | . . . . 14 . . . . . . . . . . . . . . Potential Cave-ins . | . . . . . . . . . . . . . . . . . . . Cave-ins Triggered . | . . . . . . . . . . . . . . . . . . . Exploration Rate (%) 54 | 5 97 96 39 95 87 31 96 7 82 4 97 4 92 2 97 9 79 14 Regions Visited 18 Branch Regions 2 Pre-discovered Areas 3 | . 2 1 . . . . . . . . . . . . . . . . Known Exits Taken 9 | . 1 1 1 1 . 1 . 1 . . . 1 . 1 . 1 . . Unknown Exits Taken 1 | 1 . . . . . . . . . . . . . . . . . . Scrap Searched . | . . . . . . . . . . . . . . . . . . . Spaces Dug 26 | . . . 4 3 9 . 1 . . . . . 7 . 2 . . . Terrain Destroyed 154 | . 8 2 11 13 10 1 4 . . . . . 13 . 10 24 12 46 Melee . | . . . . . . . . . . . . . . . . . . . Projectile 129 | . 8 2 11 13 10 1 3 . . . . . 13 . 9 2 11 46 AOE 22 | . . . . . . . . . . . . . . . . 22 . . Terrain Rammed . | . . . . . . . . . . . . . . . . . . . Walls Destroyed . | . . . . . . . . . . . . . . . . . . . Machines Disabled . | . . . . . . . . . . . . . . . . . . . Actions | -11 -10 -10 -9 -9 -9 -8 -8 -8 -8 -7 -7 -7 -7 -7 -7 -6 -6 -6 --------- Run | Yrd Mat Min Mat Sto Gar Mat Gar Mat Gar Fac Was Fac Gar Fac DSF Fac Gar Fac Total 13529 | 123 1356 597 519 1797 1306 578 1168 81 972 156 708 114 1538 32 207 474 1202 601 Wait 1329 | . 389 18 30 404 31 274 20 . 29 . 12 31 15 . 2 1 41 32 Move 10010 | 88 857 559 430 1283 978 253 879 78 687 136 650 82 1169 30 152 410 871 418 Hop 9 | . . . . 9 . . . . . . . . . . . . . . Pick Up 231 | 10 30 3 8 11 5 9 13 . 15 9 13 . 28 . 3 18 34 22 Fast Attach 40 | 7 3 . . 5 . 6 3 . . . 2 . 4 . 2 1 4 3 Attach 80 | 1 . . 2 6 . 2 3 . 8 2 . . 10 . . 3 26 17 Detach 4 | . . . . . . . . . . . . . . . . 1 3 . Swap 240 | 2 11 1 7 17 27 10 22 1 23 1 4 . 45 1 9 9 35 15 Drop 199 | 2 23 4 6 22 11 9 12 . 10 6 14 . 35 1 3 11 17 13 Fire 1067 | 13 43 12 36 38 206 15 111 2 113 2 12 1 192 . 35 20 135 81 Melee 4 | . . . . 2 . . . . . . . . . . . . 2 . Ram . | . . . . . . . . . . . . . . . . . . . Kick . | . . . . . . . . . . . . . . . . . . . Crush . | . . . . . . . . . . . . . . . . . . . Escape Stasis 200 | . . . . . 39 . 40 . 48 . . . 40 . . . 33 . Rewire 73 | . . . . . 1 . 47 . 22 . 1 . . . 1 . 1 . Trap . | . . . . . . . . . . . . . . . . . . . Miscellaneous 43 | . . . . . 8 . 18 . 17 . . . . . . . . . Route ------- -11/Scrapyard -10/Materials (discovered 5 exits: *Mat x3 / *Min / Sub) -10/Mines (discovered 2 exits: *Mat x2) -9/Materials (discovered 3 exits: *Mat / Min / *Sto) -9/Storage (discovered 3 exits: *Mat / [*Rec] / Gar) -9/Garrison (discovered 3 exits: *Mat x3) -8/Materials (discovered 2 exits: *Fac / Gar) -8/Garrison (discovered 4 exits: *Mat x4) -8/Materials -8/Garrison (discovered 3 exits: *Fac x3) -7/Factory -7/Waste -7/Factory -7/Garrison (discovered 3 exits: *Fac x3) -7/Factory -7/DSF -6/Factory -6/Garrison (discovered 3 exits: *Fac x3) -6/Factory (discovered 2 exits: [*Fac] / [*Low]) History --------- Turn | Location | Event 12 | -11/Scrapyard | Discovered new exit (range 16) 140 | -11/Scrapyard | Entered Materials 141 | -10/Materials | Met a group of wandering Federalists 284 | -10/Materials | Discovered new exit (range 14) 312 | -10/Materials | Build established: Mutant 546 | -10/Materials | Learned Storage trap positions 600 | -10/Materials | Learned Storage stockpile data 646 | -10/Materials | Learned Storage terminal intel 680 | -10/Materials | Learned 2 Mines zone layouts 715 | -10/Materials | Learned Storage stockpile data 738 | -10/Materials | Identified exit to Materials 770 | -10/Materials | Identified exit to Mines 770 | -10/Materials | Identified exit to Subcaves 770 | -10/Materials | Learned location of 1 exit from Materials 810 | -10/Materials | Learned Storage trap positions 1488 | -10/Materials | Repaired Imp. Light Cannon 1522 | -10/Materials | Repaired Imp. Light Cannon 1640 | -10/Materials | Entered Mines 1706 | -10/Mines | A weapon hastily lodged in a ceiling crevice suddenly fell to the ground 1777 | -10/Mines | Met a Derelict shopkeep closing up shop 1835 | -10/Mines | Learned location of Zion (-7) 1984 | -10/Mines | Discovered exit to Materials (range 12) 2133 | -10/Mines | Assisted by bots powering up and referring to "LRC-V3" 2313 | -10/Mines | Entered Materials 2313 | -9/Materials | Accompanied by 5 allies 2313 | -9/Materials | Evolved 2 slots: Weapon x2 2314 | -9/Materials | Identified exit to Storage 2315 | -9/Materials | Identified exit to Mines 2318 | -9/Materials | Led the pair of lost Derelicts to an unsafe place 2615 | -9/Materials | Build established: Gunner 2790 | -9/Materials | Discovered new exit (range 4) 3025 | -9/Materials | Entered Storage 3026 | -9/Storage | Loaded intel: 7 trap records 3027 | -9/Storage | Loaded intel: 12 terminal locations 3038 | -9/Storage | Met 01-MTF 3409 | -9/Storage | Identified exit to Garrison 3519 | -9/Storage | Found Prototype Launcher 3519 | -9/Storage | Identified Scatter Rocket Array 3700 | -9/Storage | Discovered new exit (range 12) 3867 | -9/Storage | Discovered new exit (range 11) 4850 | -9/Storage | Assisted by bots powering up and referring to "LRC-V3" 5032 | -9/Storage | Destroyed 01-MTF 5063 | -9/Storage | Lost 3 allies 5221 | -9/Storage | Build established: Commander-Gunner 5239 | -9/Storage | Entered Garrison 5239 | -9/Garrison | Accompanied by 7 allies 5333 | -9/Garrison | Triggered checkpoint 5389 | -9/Garrison | Rescued a captive Derelict 5390 | -9/Garrison | Rescued a captive Derelict 5443 | -9/Garrison | Triggered checkpoint 5508 | -9/Garrison | Triggered checkpoint 5517 | -9/Garrison | Triggered checkpoint 5563 | -9/Garrison | Triggered checkpoint 5901 | -9/Garrison | Triggered checkpoint 5911 | -9/Garrison | Garrison Relay disabled 5968 | -9/Garrison | Garrison Relay disabled 6027 | -9/Garrison | Garrison Relay disabled 6091 | -9/Garrison | Discovered new exit (range 10) 6235 | -9/Garrison | Garrison Relay disabled 6339 | -9/Garrison | Triggered checkpoint 6373 | -9/Garrison | Triggered checkpoint 6445 | -9/Garrison | Discovered new exit (range 11) 6475 | -9/Garrison | Triggered checkpoint 6496 | -9/Garrison | Garrison Relay disabled 7033 | -9/Garrison | Triggered checkpoint 7074 | -9/Garrison | Garrison Relay disabled 7148 | -9/Garrison | Discovered new exit (range 9) 7170 | -9/Garrison | Entered Materials 7170 | -8/Materials | Accompanied by 4 allies 7170 | -8/Materials | Evolved 2 slots: Utility x1, Weapon x1 7323 | -8/Materials | Lost 4 allies 7447 | -8/Materials | Repaired Imp. Assault Rifle 7487 | -8/Materials | Build established: Tank 7493 | -8/Materials | Repaired Arm. Wheel 7528 | -8/Materials | Repaired Arm. Wheel 7581 | -8/Materials | Repaired Imp. Assault Rifle 7614 | -8/Materials | Repaired Arm. Wheel 7647 | -8/Materials | Repaired Arm. Wheel 7685 | -8/Materials | Repaired Imp. Light Cannon 7788 | -8/Materials | Discovered new exit (range 4) 7850 | -8/Materials | Identified exit to Garrison 7850 | -8/Materials | Entered Garrison 7898 | -8/Garrison | Phase Generator disabled 8186 | -8/Garrison | Triggered checkpoint 8278 | -8/Garrison | Garrison Relay disabled 8430 | -8/Garrison | Triggered checkpoint 8450 | -8/Garrison | Triggered checkpoint 8513 | -8/Garrison | Discovered new exit (range 7) 8536 | -8/Garrison | Triggered checkpoint 8594 | -8/Garrison | Garrison Relay disabled 8696 | -8/Garrison | Triggered checkpoint 8764 | -8/Garrison | Garrison Relay disabled 8834 | -8/Garrison | Triggered checkpoint 8889 | -8/Garrison | Discovered new exit (range 12) 9209 | -8/Garrison | Triggered checkpoint 9240 | -8/Garrison | Garrison Relay disabled 9270 | -8/Garrison | Discovered new exit (range 12) 9270 | -8/Garrison | Discovered new exit (range 63) 9270 | -8/Garrison | Discovered new exit (range 68) 9270 | -8/Garrison | Discovered new exit (range 19) 9379 | -8/Garrison | Garrison Relay disabled 9381 | -8/Garrison | Garrison Relay disabled 9389 | -8/Garrison | Garrison Relay disabled 9391 | -8/Garrison | Garrison Relay disabled 9443 | -8/Garrison | Triggered checkpoint 9515 | -8/Garrison | Entered Materials 9515 | -8/Materials | Accompanied by 3 allies 9618 | -8/Materials | Identified exit to Garrison 9618 | -8/Materials | Entered Garrison 9618 | -8/Garrison | Accompanied by 3 allies 9680 | -8/Garrison | Triggered checkpoint 9706 | -8/Garrison | Garrison Relay disabled 9775 | -8/Garrison | Triggered checkpoint 9847 | -8/Garrison | Triggered checkpoint 9927 | -8/Garrison | Destroyed 13 combat bots 9971 | -8/Garrison | Lost 4 parts (1n1u2w) 10044 | -8/Garrison | Discovered new exit (range 9) 10061 | -8/Garrison | Discovered new exit (range 72) 10061 | -8/Garrison | Discovered new exit (range 14) 10061 | -8/Garrison | Discovered new exit (range 57) 10104 | -8/Garrison | Garrison Relay disabled 10211 | -8/Garrison | Triggered checkpoint 10288 | -8/Garrison | Triggered checkpoint 10331 | -8/Garrison | Garrison Relay disabled 10453 | -8/Garrison | Build established: Scavenger-Gunner 10574 | -8/Garrison | Triggered checkpoint 10653 | -8/Garrison | Garrison Relay disabled 10727 | -8/Garrison | Phase Generator disabled 10815 | -8/Garrison | Rescued a captive Derelict 10817 | -8/Garrison | Rescued a captive Derelict 10824 | -8/Garrison | Triggered checkpoint 10883 | -8/Garrison | Garrison Relay disabled 10891 | -8/Garrison | Garrison Relay disabled 10892 | -8/Garrison | Triggered checkpoint 11010 | -8/Garrison | Entered Factory 11010 | -7/Factory | Accompanied by 6 allies 11010 | -7/Factory | Evolved 2 slots: Propulsion x1, Weapon x1 11186 | -7/Factory | Sucked down chute 11186 | -7/Factory | Entered Waste 11186 | -7/Waste | The area was eerily silent 11286 | -7/Waste | 4 allies followed down the chute 11301 | -7/Waste | 2 allies followed down the chute 11331 | -7/Waste | Build established: Scavenger-Executioner 11743 | -7/Waste | Discovered new exit (range 13) 12152 | -7/Waste | Entered Factory 12152 | -7/Factory | Accompanied by 6 allies 12214 | -7/Factory | Garrison activated, responded to threat 12268 | -7/Factory | Identified exit to Garrison 12290 | -7/Factory | Lost 3 allies 12298 | -7/Factory | Entered Garrison 12298 | -7/Garrison | Accompanied by 2 allies 12432 | -7/Garrison | Triggered checkpoint 12478 | -7/Garrison | Garrison Relay disabled 12650 | -7/Garrison | Triggered checkpoint 12709 | -7/Garrison | Destroyed 8 combat bots 12713 | -7/Garrison | Lost 3 parts (1u2w) 12741 | -7/Garrison | Triggered checkpoint 12804 | -7/Garrison | Triggered checkpoint 12926 | -7/Garrison | Triggered checkpoint 13004 | -7/Garrison | Garrison Relay disabled 13028 | -7/Garrison | Discovered new exit (range 15) 13052 | -7/Garrison | Garrison Relay disabled 13402 | -7/Garrison | Triggered checkpoint 13437 | -7/Garrison | Garrison Relay disabled 13568 | -7/Garrison | Discovered new exit (range 8) 13944 | -7/Garrison | Triggered checkpoint 13986 | -7/Garrison | Garrison Relay disabled 14051 | -7/Garrison | Discovered new exit (range 12) 14426 | -7/Garrison | Attempted to access garrison exit controls, blocked by remote lockdown 14434 | -7/Garrison | Build established: Executioner 14585 | -7/Garrison | Entered Factory 14626 | -7/Factory | Identified exit to DSF 14627 | -7/Factory | Entered DSF 14669 | -7/DSF | Additional patrols routed to DSF 14808 | -7/DSF | Sterilization system engaged 14828 | -7/DSF | Ambient heat levels rising (+10) 14843 | -7/DSF | Ambient heat levels rising (+10) 14848 | -7/DSF | Discovered new exit (range 15) 14858 | -7/DSF | Ambient heat levels rising (+10) 14873 | -7/DSF | Ambient heat levels rising (+10) 14888 | -7/DSF | Ambient heat levels rising (+10) 14903 | -7/DSF | Ambient heat levels rising (+10) 14918 | -7/DSF | Ambient heat levels rising (+10) 14933 | -7/DSF | Ambient heat levels rising (+10) 14948 | -7/DSF | Ambient heat levels rising (+10) 14963 | -7/DSF | Ambient heat levels rising (+10) 14969 | -7/DSF | Entered Factory 14969 | -6/Factory | Evolved 2 slots: Propulsion x1, Utility x1 15130 | -6/Factory | Identified exit to Garrison 15263 | -6/Factory | Build established: Hauler-Executioner 15653 | -6/Factory | Entered Garrison 15751 | -6/Garrison | Destroyed 11 combat bots 15758 | -6/Garrison | Lost 7 parts (2n1u4w) 15817 | -6/Garrison | Triggered checkpoint 15975 | -6/Garrison | Garrison Relay disabled 16022 | -6/Garrison | Triggered checkpoint 16070 | -6/Garrison | Discovered new exit (range 43) 16070 | -6/Garrison | Discovered new exit (range 72) 16070 | -6/Garrison | Discovered new exit (range 79) 16070 | -6/Garrison | Garrison Relay disabled 16072 | -6/Garrison | Build established: Scavenger-Executioner 16191 | -6/Garrison | Lost 3 parts (2n1u) 16296 | -6/Garrison | Spotted B-75 Beast 16361 | -6/Garrison | Lost 10 parts (1p2n7w) 16368 | -6/Garrison | Destroyed B-75 Beast 16529 | -6/Garrison | Triggered checkpoint 16655 | -6/Garrison | Found embedded Infiltrators 16659 | -6/Garrison | Garrison Relay disabled 16738 | -6/Garrison | Triggered checkpoint 16776 | -6/Garrison | Triggered checkpoint 16874 | -6/Garrison | Triggered checkpoint 16926 | -6/Garrison | Garrison Relay disabled 16997 | -6/Garrison | Garrison Relay disabled 17003 | -6/Garrison | Garrison Relay disabled 17092 | -6/Garrison | Rewired B-75 Beast 17228 | -6/Garrison | Triggered checkpoint 17533 | -6/Garrison | Triggered checkpoint 17571 | -6/Garrison | Entered Factory 17571 | -6/Factory | Accompanied by 1 ally 17601 | -6/Factory | Discovered new exit (range 9) 17694 | -6/Factory | Core integrity fell below 50% 17819 | -6/Factory | Discovered new exit (range 14) 17921 | -6/Factory | First assault squad dispatched 18051 | -6/Factory | System corruption reached 10% 18099 | -6/Factory | Lost 6 parts (1p2n3w) 18373 | -6/Factory | Lost 4 parts (2n2w) 18475 | -6/Factory | Core integrity fell below 20% 18495 | -6/Factory | Lost 5 parts (2n1u2w) 18522 | -6/Factory | Self-destructed Last Messages --------------- 18462_ System corrupted: Matter fused (-9). 18464_ Bore Cannon destroyed. 18468_ S-27 Virus knocked back. 18468_ HV Slug penetrates Wall. 18469_ U-05 Engineer builds a Wall. 18474_ S-27 Virus destroyed. 18477_ Acquired Prototype Reactor. 18477_ Identified Cold Fusion Reactor. 18477_ Com. Wheel broken. 18477_ Faulty integration triggers power surge. 18480_ Dropped Broken Com. Wheel. 18483_ U-05 Engineer builds a Wall. 18483_ Acquired Particle Reactor. 18485_ Acquired 68 matter. 18488_ Acquired 8 matter. 18507_ System corrupted: FCS attempts to trigger Bore Cannon. 18507_ System corrupted: Bore Cannon misfires. 18511_ >> Machine Analyzer network decryption results: 18511_ Terminal x1 18521_ Slug penetrates Wall. Map ----- +----------------------------------------------------+ | ?????????????????????????????????????????????????? | | ?????????????????????????????????????????????????? | | "?"""????????????????????????????????????????????? | | "?"""????????????????????????????????????????????? | | "?"""????????????????????????????????????????????? | | ?????????????????????????????????????????????????? | | "?"""????????????????????????????????????????????? | | "?"""????????????????????????????????????????????? | | "?"""????????????????????????????????????????????? | | ?????????????????????????????????????????????????? | | ?????????????????????????????????????????????????? | | ?????????????????????????????????????????????????? | | ?????????????????????????????????????????????????? | | ???????????????????##############????????????????? | | ???????????????????#!!! #????????????????? | | ?????????????????#?#!! #????????????????? | | ?????????????????# #!! #????????????????? | | ?????????????????? # #????????????????? | | ???????????????????+ #????????????????? | | ???????????????????#h #????????????????? | | ???????????????????# #????????????????? | | ???????????????????# #????????????????? | | "??????????????????# p #????????????????? | | "??????????????????# ##???????????????? | | "??????????????????# Y#???????????????? | | "??????????????????# @ #????????????????? | | "??????????????????#######+############??????????? | | "??????????????????????# +? ??????????? | | "??????????????????????# # """"""""" #???????? | | ??????????????# ??????# # #???????? | | ??????????????+ ##### + #???????? | | ??????????????# # "" "" ! #???????? | | ???"T"????????# # ""T"" ? ?????????? | | ??????????????# #? """ ?????????????? | | ??????????????#### """ """ #?######????????????? | | ?????????????????# """ """ "#???# ####?????????? | | ?????????????????# """ """ # ? ?????????? | | ?????????????????# "" "" # !??????????? | | ?????????????????# "" "" #? ???????????? | | ?????????????????# #?? ???????????? | | ?????????????????# """ """ #? """ ???????????? | | ?????????????????#??""" """ #? """ ?????????? | | ?????????????????# """ """ # """ ?????????? | | ?????????????????# "" "" # "" ????????? | | ?????????????????# "" "" + "" ????????? | | ?????????????????# !*# #??????? | | ????????????? ??# """ """* # " F" #??????? | | ?????????????#"### """ ""=*#? """"????????? | | ?????????????? """ "" #?#########?????????? | | ????????????? " "" %#???????????????????? | +----------------------------------------------------+ Best States ------------- Heat Dissipation 91 Coolant Potential 65 Energy Generation 23 Energy Capacity 340 Matter Stores 300 Matter Capacity 300 Sight Range 16 Terrain Scan Range 16 Terrain Scan Density 10 Armor Coverage 150 Evasion (%) 44 Targeting Accuracy 8 Target Analysis 5 Recoil Reduction 4 Item Schematics ----------------- Wheel | -10/Materials | Hacked Assault Rifle | -10/Materials | Hacked Ion Engine | -10/Materials | Hacked Imp. Cooling System | -9/Storage | Hacked Bore Cannon | -8/Materials | Scanalyzed Arm. Wheel | -8/Materials | Scanalyzed Recoil Stabilizer | -7/Factory | Scanalyzed Arm. Huge Wheel | -7/Factory | Hacked Robot Schematics ------------------ None Fabricated ------------ Nothing Repaired ---------- Imp. Light Cannon | 45% | -10/Materials Imp. Light Cannon | 72% | -10/Materials Imp. Assault Rifle | 36% | -8/Materials Arm. Wheel | 30% | -8/Materials Arm. Wheel | 48% | -8/Materials Imp. Assault Rifle | 46% | -8/Materials Arm. Wheel | 51% | -8/Materials Arm. Wheel | 58% | -8/Materials Imp. Light Cannon | 62% | -8/Materials Alien Tech Used ----------------- None Achievements -------------- None Challenges ------------ None Game ------ Seed TacticalOmegaShearcannon Manual? 0 Play Time 02:25:36 Cumulative 1172.1 hours Start 2025.08.01 @ 19:04:14 End 2025.08.02 @ 00:05:18 Sessions 3 Manual Loads 0 Difficulty Rogue Special Mode None Game No. 565 Rogue 565 Adventurer 0 Explorer 0 Win Type - Total 23 Types 10/4/3/0/1/1/2/2/0/0 Lore% 90 Gallery% 90 Achievement% 84 Wizard Run 0 Options --------- Layout 0 ASCII 0 Keyboard 0 Movement Numpad Keybinds 0 Fullscreen 2 Font 24/Smallcaps Map View 76x50 Zoom Use 0% Tactical HUD 1 Map Filters NONE Filters SHIFT_HUE(315) Steam 1 RUN: 6d301b36-0144-4c4d-a7d2-968989f050ee